fUST/lending_fUST_20260116
["ID","MTS","AMOUNT","RATE_DAILY","PERIOD"]
[402108071,1768521043267,-182.237864,0.00016438,2]
[402108073,1768521043276,-164.30818849,0.00016438,2]
[402108075,1768521043286,-1500.0,0.00016438,2]
[402108077,1768521043295,-3000.0,0.00016438,2]
[402108079,1768521043304,-208.099572,0.00016445,7]
[402108081,1768521043314,-419.89511,0.00016462,7]
[402108083,1768521043323,-200.0,0.00016473,2]
[402108085,1768521043334,-151.0,0.000165,2]
[402108086,1768521043344,-1003.783451,0.00016524,7]
[402108088,1768521043354,-3500.0,0.0001656,2]
[402108090,1768521043364,-31110.0,0.00016562,2]
[402108092,1768521043374,-151.0,0.000167,2]
[402108094,1768521043384,-3500.0,0.00016986,2]
[402108096,1768521043393,-467.9,0.00017011,2]
[402108098,1768521043403,-1003.04077884,0.00017108,2]
[402108100,1768521043413,-32261.07,0.0001711,2]
[402108102,1768521043423,-473.37332691,0.00017243,2]
[402108104,1768521043433,-2048.49,0.00017248,2]
[402108106,1768521043442,-360.2449669,0.0001725,2]
[402108108,1768521043452,-5000.0,0.00017412,2]
[402108110,1768521043462,-2500.0,0.00017534,2]
[402108112,1768521043471,-1041.66666667,0.0001757,2]
[402108114,1768521043481,-467.9,0.00017584,2]
[402108115,1768521043490,-151.0,0.000176,2]
[402108117,1768521043500,-151.0,0.000176,2]
[402108119,1768521043509,-33454.72959,0.00017658,2]
[402108121,1768521043518,-3000.0,0.00017753,7]
[402108123,1768521043527,-500.0,0.000178,2]
[402108125,1768521043537,-32262.74022243,0.000178,3]
[402108127,1768521043546,-2147.0,0.00017849,2]
[402108129,1768521043555,-629.0,0.00017849,2]
[402108131,1768521043565,-1367.0,0.00017849,2]
[402108133,1768521043574,-417.0,0.00017849,2]
[402108134,1768521043583,-2232.0,0.00018008,2]
[402108136,1768521043592,-467.9,0.00018156,2]
[402108138,1768521043601,-16092.26262092,0.00018206,2]
[402108140,1768521043611,-200.0,0.00018342,7]
[402108142,1768521043621,-200.0,0.00018342,7]
[402108144,1768521043630,-200.0,0.00018342,7]
[402108146,1768521043640,-151.0,0.000184,2]
[402108148,1768521043650,-163.995173,0.00018493,2]
[402108150,1768521043659,-2919.84766294,0.00018563,7]
[402108152,1768521043668,-151.0,0.000187,2]
[402108154,1768521043677,-467.9,0.00018729,2]
[402108156,1768521043686,-3000.0,0.00018849,7]
[402108158,1768521043695,-5000.0,0.00018863,2]
[402108160,1768521043704,-303.10001603,0.000189,2]
[402108162,1768521043714,-303.10001603,0.000189,2]
[402108164,1768521043724,-728.0,0.00018939,2]
[402108165,1768521043736,-15000.0,0.00019,2]
[402108167,1768521043745,-303.10001603,0.00019089,2]
[402108169,1768521043754,-303.10001603,0.00019089,2]
[402108171,1768521043764,-507.2385,0.00019178,2]
[402108173,1768521043776,-507.2385,0.00019178,2]
[402108175,1768521043785,-200.0,0.00019178,2]
[402108177,1768521043794,-507.2385,0.00019178,2]
[402108179,1768521043805,-507.2385,0.00019178,2]
[402108181,1768521043815,-507.2385,0.00019178,2]
[402108183,1768521043824,-507.2385,0.00019178,2]
[402108185,1768521043833,-507.2385,0.00019178,2]
[402108187,1768521043843,-507.2385,0.00019178,2]
[402108189,1768521043853,-507.2385,0.00019178,2]
[402108191,1768521043863,-507.2385,0.00019178,2]
[402108193,1768521043872,-507.2385,0.00019178,2]
[402108194,1768521043882,-507.2385,0.00019178,2]
[402108196,1768521043891,-507.2385,0.00019178,2]
[402108198,1768521043901,-449.33,0.00019178,2]
[402108200,1768521043911,-1353.9,0.00019178,2]
[402108202,1768521043921,-1353.9,0.00019178,2]
[402108204,1768521043930,-1353.9,0.00019178,2]
[402108206,1768521043940,-1353.9,0.00019178,2]
[402108208,1768521043949,-1353.9,0.00019178,2]
[402108210,1768521043959,-1353.9,0.00019178,2]
[402108212,1768521043969,-1353.9,0.00019178,2]
[402108214,1768521043979,-1353.9,0.00019178,2]
[402108216,1768521043989,-1353.9,0.00019178,2]
[402108218,1768521043999,-1353.9,0.00019178,2]
[402108220,1768521044009,-1353.9,0.00019178,2]
[402108222,1768521044019,-1353.9,0.00019178,2]
[402108224,1768521044029,-1353.9,0.00019178,2]
[402108226,1768521044039,-1353.9,0.00019178,2]
[402108228,1768521044048,-1353.9,0.00019178,2]
[402108230,1768521044058,-1353.9,0.00019178,2]
[402108232,1768521044067,-1353.9,0.00019178,2]
[402108234,1768521044076,-1353.9,0.00019178,2]
[402108235,1768521044085,-1353.9,0.00019178,2]
[402108237,1768521044094,-1353.9,0.00019178,2]
[402108239,1768521044103,-1353.9,0.00019178,2]
[402108241,1768521044112,-1353.9,0.00019178,2]
[402108243,1768521044121,-1353.9,0.00019178,2]
[402108245,1768521044131,-1354.09299172,0.00019178,2]
[402108246,1768521044140,-5000.0,0.00019178,2]
[402108248,1768521044149,-5000.0,0.00019178,2]
[402108250,1768521044158,-5000.0,0.00019178,2]
[402108252,1768521044167,-5000.0,0.00019178,2]
[402108254,1768521044177,-5000.0,0.00019178,2]
[402108256,1768521044187,-5000.0,0.00019178,2]
[402108258,1768521044196,-151.0,0.00019178,2]
[402108260,1768521044206,-243.48264022,0.00019178,2]
[402108262,1768521044216,-1662.530264,0.00019178,2]
[402108264,1768521044225,-1662.530264,0.00019178,2]
[402108265,1768521044234,-1662.530264,0.00019178,2]
[402108267,1768521044243,-1662.530264,0.00019178,2]
[402108269,1768521044253,-1662.530264,0.00019178,2]
[402108271,1768521044262,-1662.530264,0.00019178,2]
[402108273,1768521044271,-1662.530264,0.00019178,2]
[402108275,1768521044281,-1662.530264,0.00019178,2]
[402108277,1768521044290,-1662.530264,0.00019178,2]
[402108279,1768521044299,-1662.530264,0.00019178,2]
[402108280,1768521044308,-1662.530264,0.00019178,2]
[402108282,1768521044318,-1662.530264,0.00019178,2]
[402108284,1768521044327,-1662.530264,0.00019178,2]
[402108286,1768521044336,-1662.530264,0.00019178,2]
[402108288,1768521044346,-1662.530264,0.00019178,2]
[402108290,1768521044355,-1662.530264,0.00019178,2]
[402108292,1768521044364,-1662.530264,0.00019178,2]
[402108293,1768521044373,-1662.530264,0.00019178,2]
[402108295,1768521044383,-1662.530264,0.00019178,2]
[402108297,1768521044392,-1662.530264,0.00019178,2]
[402108299,1768521044401,-4132.66025166,0.00019199,7]
[402108301,1768521044410,-192.13,0.000192,2]
[402108303,1768521044419,-167.84,0.000192,2]
[402108304,1768521044429,-159.77,0.000192,2]
[402108305,1768521044438,-3036.1,0.000192,2]
[402108306,1768521044447,-17112.67,0.000192,2]
[402108307,1768521044456,-522.91239601,0.00019243,2]
[402108308,1768521044466,-303.10001603,0.00019278,2]
[402108309,1768521044475,-303.10001603,0.00019278,2]
[402108310,1768521044484,-467.9,0.00019302,2]
[402108311,1768521044493,-500.0,0.00019417,30]
[402108312,1768521044502,-500.0,0.00019417,30]
[402108313,1768521044511,-500.0,0.00019417,30]
[402108314,1768521044521,-500.0,0.00019417,30]
[402108315,1768521044530,-500.0,0.00019417,30]
[402108316,1768521044539,-500.0,0.00019417,30]
[402108317,1768521044549,-500.0,0.00019417,30]
[402108318,1768521044558,-500.0,0.00019417,30]
[402108319,1768521044568,-500.0,0.00019417,30]
[402108320,1768521044577,-500.0,0.00019417,30]
[402108321,1768521044587,-500.0,0.00019417,30]
[402108322,1768521044596,-500.0,0.00019417,30]
[402108323,1768521044606,-500.0,0.00019417,30]
[402108324,1768521044616,-500.0,0.00019417,30]
[402108325,1768521044625,-500.0,0.00019417,30]
[402108326,1768521044634,-500.0,0.00019417,30]
[402108327,1768521044644,-500.0,0.00019417,30]
[402108328,1768521044653,-500.0,0.00019417,30]
[402108329,1768521044663,-500.0,0.00019417,30]
[402108330,1768521044673,-500.0,0.00019417,30]
[402108331,1768521044682,-500.0,0.00019417,30]
[402108332,1768521044692,-500.0,0.00019417,30]
[402108333,1768521044701,-2000.0,0.00019417,30]
[402108334,1768521044711,-2000.0,0.00019417,30]
[402108335,1768521044721,-901.3829599,0.00019417,30]
[402108336,1768521044734,-2000.0,0.00019417,30]
[402108338,1768521044743,-523.03503726,0.00019417,30]
[402108339,1768521044753,-2000.0,0.00019417,30]
[402108340,1768521044762,-2000.0,0.00019417,30]
[402108342,1768521044774,-2000.0,0.00019417,30]
[402108344,1768521044784,-2000.0,0.00019417,30]
[402108346,1768521044793,-2000.0,0.00019417,30]
[402108348,1768521044803,-190.0,0.00019417,30]
[402108350,1768521044812,-2000.0,0.00019417,30]
[402108352,1768521044822,-500.0,0.00019417,30]
[402108354,1768521044831,-791.66062171,0.00019417,30]
[402108356,1768521044840,-2000.0,0.00019417,30]
[402108358,1768521044849,-500.0,0.00019417,30]
[402108360,1768521044859,-2000.0,0.00019417,30]
[402108362,1768521044868,-2000.0,0.00019417,30]
[402108364,1768521044877,-500.0,0.00019417,30]
[402108366,1768521044887,-2000.0,0.00019417,30]
[402108368,1768521044896,-499.3,0.00019417,30]
[402108370,1768521044905,-500.0,0.00019417,30]
[402108372,1768521044915,-2000.0,0.00019417,30]
[402108374,1768521044924,-500.0,0.00019417,30]
[402108376,1768521044934,-500.0,0.00019417,30]
[402108378,1768521044944,-700.0,0.00019417,30]
[402108380,1768521044954,-500.0,0.00019417,30]
[402108389,1768521045037,-700.0,0.00019417,30]
[402108391,1768521045046,-700.0,0.00019417,30]
[402108393,1768521045055,-500.0,0.00019417,30]
[402108395,1768521045064,-700.0,0.00019417,30]
[402108397,1768521045073,-500.0,0.00019417,30]
[402108399,1768521045082,-600.0,0.00019417,30]
[402108401,1768521045091,-700.0,0.00019417,30]
[402108403,1768521045100,-600.0,0.00019417,30]
[402108405,1768521045109,-700.0,0.00019417,30]
[402108407,1768521045118,-600.0,0.00019417,30]
[402108409,1768521045127,-700.0,0.00019417,30]
[402108411,1768521045137,-600.0,0.00019417,30]
[402108412,1768521045146,-700.0,0.00019417,30]
[402108414,1768521045156,-600.0,0.00019417,30]
[402108416,1768521045165,-600.0,0.00019417,30]
[402108418,1768521045174,-600.0,0.00019417,30]
[402108420,1768521045184,-600.0,0.00019417,30]
[402108422,1768521045194,-600.0,0.00019417,30]
[402108424,1768521045204,-600.0,0.00019417,30]
[402108426,1768521045213,-600.0,0.00019417,30]
[402108428,1768521045223,-600.0,0.00019417,30]
[402108430,1768521045232,-600.0,0.00019417,30]
[402108432,1768521045242,-600.0,0.00019417,30]
[402108434,1768521045253,-600.0,0.00019417,30]
[402108436,1768521045263,-700.0,0.00019417,30]
[402108438,1768521045272,-700.0,0.00019417,30]
[402108440,1768521045282,-700.0,0.00019417,30]
[402108442,1768521045292,-700.0,0.00019417,30]
[402108444,1768521045301,-700.0,0.00019417,30]
[402108446,1768521045310,-700.0,0.00019417,30]
[402108450,1768521045319,-500.0,0.00019417,30]
[402108453,1768521045328,-499.3,0.00019417,30]
[402108455,1768521045337,-700.0,0.00019417,30]
[402108457,1768521045347,-500.0,0.00019417,30]
[402108459,1768521045357,-500.0,0.00019417,30]
[402108461,1768521045366,-900.0,0.00019417,30]
[402108463,1768521045375,-303.10001603,0.00019467,2]
[402108465,1768521045385,-303.10001603,0.00019467,2]
[402108467,1768521045394,-303.10001603,0.00019656,2]
[402108469,1768521045403,-303.10001603,0.00019656,2]
[402108471,1768521045413,-12905.08,0.000197,3]
[402108473,1768521045423,-1083.285884,0.00019715,2]
[402108475,1768521045432,-2000.0,0.00019725,7]
[402108477,1768521045442,-151.0,0.000198,2]
[402108479,1768521045451,-2206.69230016,0.00019806,2]
[402108481,1768521045460,-4965.05767537,0.00019806,2]
[402108483,1768521045469,-375.89228199,0.00019806,2]
[402108485,1768521045478,-1503.56912798,0.00019806,2]
[402108487,1768521045488,-3383.03053795,0.00019806,2]
[402108489,1768521045497,-6014.27651191,0.00019806,2]
[402108491,1768521045506,-160.42170683,0.00019806,2]
[402108492,1768521045515,-641.04514048,0.00019806,2]
[402108494,1768521045524,-3809.23946446,0.00019815,2]
[402108496,1768521045535,-2570.33183704,0.00019839,2]
[402108498,1768521045545,-454.65002405,0.00019845,4]
[402108500,1768521045555,-454.65002405,0.00019845,4]
[402108502,1768521045566,-467.9,0.00019875,2]
[402108504,1768521045575,-3007.35262921,0.00019884,2]
[402108506,1768521045586,-849.26,0.0001989,2]
[402108508,1768521045596,-3548.7352712,0.00019891,2]
[402108510,1768521045605,-3151.8613994,0.00019891,2]
[402108512,1768521045615,-170958.2365988,0.00019891,2]
[402108514,1768521045625,-5000.0,0.00019911,2]
[402108516,1768521045634,-1570.487546,0.0001992,5]
[402108518,1768521045644,-1000.0,0.0001994,5]
[402108520,1768521045654,-3000.0,0.00019945,7]
[402108522,1768521045664,-1171740.95231231,0.0001995,2]
[402108525,1768521045684,-3349.68883386,0.0001995,2]
[402108528,1768521045696,-8873.64136391,0.0001995,2]
[402108686,1768521047892,-715.0,0.00011849,2]
[402108688,1768521047902,-155.34,0.0001398,2]
[402108690,1768521047913,-36.87964252,0.00014802,2]
[402108692,1768521047925,-140.66035748,0.00014802,2]
[402108694,1768521047935,-638.11877408,0.00014849,2]
[402108696,1768521047947,-76.88122592,0.00014849,2]
[402108698,1768521047955,-5433.04058922,0.0001995,2]
[402110508,1768521192497,231.19403723,0.00022928,110]
[402110509,1768521192521,611.89,0.00022928,110]
[402110510,1768521192544,611.89,0.00022928,110]
[402110543,1768521239135,24.71426113,0.00022826,110]
[402110544,1768521239157,170.49541513,0.00022826,110]
[402110615,1768521483758,-300.0,8.931e-05,2]
[402110617,1768521498992,-379.27039951,8.932e-05,2]
[402110618,1768521499028,-10000.01,8.932e-05,2]
[402110619,1768521499165,-2348.68848201,8.932e-05,2]
[402110620,1768521499199,-5302.63303598,8.932e-05,2]
[402110622,1768521502834,4779.77,8.914e-05,2]
[402110635,1768521682378,168.47509369,0.00022274,120]
[402110745,1768522231925,-2898.06756959,9.044e-05,2]
[402110746,1768522231936,-16588.59999995,9.044e-05,2]
[402110747,1768522231947,-3968.79789825,9.044e-05,2]
[402110748,1768522231956,-227.32928374,9.094e-05,2]
[402110749,1768522231965,-500.0,9.143e-05,2]
[402110750,1768522231974,-185.31292026,9.143e-05,2]
[402110751,1768522231983,-500.0,9.143e-05,2]
[402110752,1768522231992,-590.83786037,9.143e-05,2]
[402110753,1768522232001,-172.8272094,9.143e-05,2]
[402110754,1768522232010,-500.0,9.143e-05,2]
[402110755,1768522232019,-215.43575132,9.143e-05,2]
[402110757,1768522232032,-300.0,9.326e-05,2]
[402110759,1768522232041,-300.0,9.326e-05,2]
[402110761,1768522232052,-300.0,9.326e-05,2]
[402110763,1768522232062,-300.0,9.326e-05,2]
[402110765,1768522232072,-300.0,9.326e-05,2]
[402110767,1768522232081,-300.0,9.326e-05,2]
[402110768,1768522232091,-300.0,9.326e-05,2]
[402110770,1768522232100,-300.0,9.326e-05,2]
[402110772,1768522232111,-300.0,9.326e-05,2]
[402110774,1768522232120,-300.0,9.326e-05,2]
[402110776,1768522232129,-300.0,9.326e-05,2]
[402110778,1768522232139,-300.0,9.326e-05,2]
[402110779,1768522232149,-300.0,9.326e-05,2]
[402110780,1768522232158,-300.0,9.326e-05,2]
[402110781,1768522232170,-300.0,9.326e-05,2]
[402110782,1768522232180,-600.0,9.326e-05,2]
[402110783,1768522232189,-720.0,0.00010259,2]
[402110784,1768522232199,-999.0,0.00010959,2]
[402110786,1768522232209,-1010.85056242,0.00011,2]
[402110787,1768522232218,-268.24855481,0.00011094,2]
[402110789,1768522232228,-1010.85056242,0.00011244,4]
[402110790,1768522232237,-864.0,0.00011284,2]
[402110791,1768522232246,-1010.85056242,0.00011487,6]
[402110792,1768522232256,-1010.85056242,0.00011731,8]
[402110793,1768522232266,-2147.0,0.00011849,2]
[402110794,1768522232275,-629.0,0.00011849,2]
[402110795,1768522232284,-1367.0,0.00011849,2]
[402110796,1768522232294,-1010.85056242,0.00011975,10]
[402110797,1768522232303,-393.86673317,0.00012015,2]
[402110798,1768522232313,-1010.85056242,0.00012219,13]
[402110799,1768522232324,-500.0,0.00012329,2]
[402110800,1768522232333,-500.0,0.00012329,2]
[402110801,1768522232344,-500.0,0.00012329,2]
[402110802,1768522232353,-500.0,0.00012329,2]
[402110803,1768522232363,-500.0,0.00012329,2]
[402110804,1768522232372,-500.0,0.00012329,2]
[402110805,1768522232381,-157.98802618,0.00012329,2]
[402110806,1768522232391,-1000.0,0.00012413,2]
[402110807,1768522232400,-1010.85056242,0.00012462,15]
[402110808,1768522232412,-1010.85056242,0.00012706,17]
[402110809,1768522232422,-12728.95680757,0.000129,2]
[402110810,1768522232431,-12728.95680754,0.000129,2]
[402110811,1768522232440,-1010.85056242,0.0001295,19]
[402110812,1768522232450,-318.0,0.00013039,2]
[402110813,1768522232459,-309.16782588,0.00013094,2]
[402110814,1768522232469,-1010.85056242,0.00013193,21]
[402110815,1768522232478,-161.14886831,0.00013273,2]
[402110816,1768522232487,-500.0,0.00013273,2]
[402110817,1768522232496,-1010.85056242,0.00013437,24]
[402110818,1768522232505,-1000.0,0.00013654,2]
[402110819,1768522232514,-244.0,0.00013654,2]
[402110820,1768522232523,-1010.85056242,0.00013681,26]
[402110821,1768522232533,-500.0,0.00013698,2]
[402110822,1768522232542,-500.0,0.00013698,2]
[402110823,1768522232551,-500.0,0.00013698,2]
[402110824,1768522232560,-500.0,0.00013698,2]
[402110825,1768522232570,-500.0,0.00013698,2]
[402110826,1768522232579,-500.0,0.00013698,2]
[402110827,1768522232588,-500.0,0.00013698,2]
[402110828,1768522232598,-500.0,0.00013698,2]
[402110829,1768522232607,-500.0,0.00013698,2]
[402110830,1768522232616,-500.0,0.00013698,2]
[402110831,1768522232626,-500.0,0.00013698,2]
[402110832,1768522232635,-500.0,0.00013698,2]
[402110833,1768522232645,-500.0,0.00013698,2]
[402110834,1768522232655,-500.0,0.00013698,2]
[402110835,1768522232664,-643.46245362,0.00013698,2]
[402110836,1768522232673,-500.0,0.00013699,2]
[402110837,1768522232684,-1000.0,0.00013821,2]
[402110838,1768522232695,-1010.85056242,0.00013925,28]
[402110839,1768522232704,-1010.85056242,0.00014168,30]
[402110840,1768522232716,-325.29111599,0.00014247,2]
[402110841,1768522232726,-1184.10335797,0.00014368,2]
[402110842,1768522232736,-12728.95680754,0.00014389,2]
[402110843,1768522232746,-1010.85056242,0.00014412,32]
[402110844,1768522232755,-1010.85056242,0.00014656,35]
[402110845,1768522232767,-2147.0,0.00014849,2]
[402110846,1768522232775,-629.0,0.00014849,2]
[402110847,1768522232786,-1367.0,0.00014849,2]
[402110848,1768522232796,-1010.85056242,0.000149,37]
[402110849,1768522232806,-722.64695544,0.0001502,2]
[402110871,1768522237968,-715.0,0.00011849,2]
[402110872,1768522237979,-198.527,0.00011849,2]
[402110874,1768522237989,-715.0,0.00014849,2]
[402110876,1768522237999,-277.35304456,0.0001502,2]
[402110879,1768522238009,-492.0,0.0001502,2]
[402110881,1768522238018,-350.08709696,0.00015094,2]
[402110883,1768522238028,-1010.85056242,0.00015143,39]
[402110885,1768522238040,-1010.85056242,0.00015387,41]
[402110886,1768522238050,-412.8268015,0.000154,2]
[402110888,1768522238060,-168.4750937,0.000154,2]
[402110891,1768522238071,-1010.85056242,0.00015631,43]
[402110893,1768522238080,-412.8268015,0.0001566,5]
[402110895,1768522238090,-1010.85056242,0.00015874,46]
[402110897,1768522238100,-412.8268015,0.0001592,9]
[402110899,1768522238110,-1010.85056242,0.00016118,48]
[402110901,1768522238120,-412.8268015,0.0001618,13]
[402110903,1768522238129,-1010.85056242,0.00016362,50]
[402110905,1768522238139,-194.9,0.00016438,2]
[402110907,1768522238149,-412.8268015,0.0001644,16]
[402110909,1768522238159,-1000.0,0.00016522,2]
[402110911,1768522238169,-791.0,0.00016522,2]
[402110913,1768522238179,-1010.85056242,0.00016606,52]
[402110915,1768522238188,-412.8268015,0.000167,20]
[402110917,1768522238199,-1010.85056242,0.00016849,54]
[402110919,1768522238208,-168.4750937,0.00016908,23]
[402110921,1768522238219,-12252.8969936,0.0001691,2]
[402110923,1768522238229,-412.8268015,0.0001696,24]
[402110925,1768522238238,-3544.55380863,0.00016969,2]
[402110927,1768522238248,-12728.95680754,0.00016971,2]
[402110929,1768522238257,-194.9,0.00017011,2]
[402110931,1768522238267,-1010.85056242,0.00017093,57]
[402110933,1768522238277,-391.00636803,0.00017094,2]
[402110935,1768522238288,-412.8268015,0.00017221,28]
[402110937,1768522238299,-1010.85056242,0.00017337,59]
[402110939,1768522238309,-1041.66666667,0.00017464,2]
[402110941,1768522238320,-160.0,0.00017466,2]
[402110943,1768522238330,-412.8268015,0.00017481,31]
[402110945,1768522238340,-1010.85056242,0.0001758,61]
[402110947,1768522238350,-194.9,0.00017584,2]
[402110949,1768522238359,-412.8268015,0.00017741,35]
[402110951,1768522238369,-1010.85056242,0.00017824,63]
[402110953,1768522238379,-2147.0,0.00017849,2]
[402110955,1768522238389,-629.0,0.00017849,2]
[402110957,1768522238400,-1367.0,0.00017849,2]
[402110959,1768522238410,-715.0,0.00017849,2]
[402110961,1768522238419,-412.8268015,0.00018001,39]
[402110963,1768522238429,-3000.0,0.00018027,7]
[402110965,1768522238438,-151.0,0.00018041,2]
[402110967,1768522238448,-151.0,0.00018041,2]
[402110969,1768522238457,-151.0,0.00018041,2]
[402110971,1768522238466,-1010.85056242,0.00018068,65]
[402110973,1768522238476,-200.0,0.00018117,7]
[402110975,1768522238486,-200.0,0.00018117,7]
[402110977,1768522238495,-200.0,0.00018117,7]
[402110979,1768522238504,-194.9,0.00018156,2]
[402110981,1768522238514,-1000.0,0.00018174,2]
[402110983,1768522238523,-1000.0,0.00018174,2]
[402110985,1768522238532,-412.8268015,0.00018261,42]
[402110987,1768522238542,-1010.85056242,0.00018312,68]
[402110989,1768522238552,-168.4750937,0.00018417,45]
[402110991,1768522238561,-412.8268015,0.00018521,46]
[402110993,1768522238571,-1010.85056242,0.00018555,70]
[402110995,1768522238580,-500.0,0.00018574,2]
[402110997,1768522238589,-194.9,0.00018729,2]
[402110999,1768522238599,-412.8268015,0.00018781,50]
[402111002,1768522238609,-1010.85056242,0.00018799,72]
[402111004,1768522238618,-303.10001603,0.000189,2]
[402111005,1768522238627,-412.8268015,0.00019041,54]
[402111008,1768522238641,-1010.85056242,0.00019043,74]
[402111010,1768522238650,-303.10001603,0.00019089,2]
[402111012,1768522238661,-431.9256391,0.00019094,2]
[402111014,1768522238670,-3000.0,0.00019123,7]
[402111016,1768522238680,-451.793277,0.00019143,7]
[402111018,1768522238690,-507.2385,0.00019178,2]
[402111020,1768522238699,-507.2385,0.00019178,2]
[402111022,1768522238709,-507.2385,0.00019178,2]
[402111024,1768522238718,-507.2385,0.00019178,2]
[402111026,1768522238728,-507.2385,0.00019178,2]
[402111028,1768522238737,-507.2385,0.00019178,2]
[402111030,1768522238747,-507.2385,0.00019178,2]
[402111032,1768522238756,-507.2385,0.00019178,2]
[402111034,1768522238766,-507.2385,0.00019178,2]
[402111036,1768522238775,-2105.14684044,0.00019178,2]
[402111039,1768522238790,-1014.47,0.00019178,2]
[402111041,1768522238800,-507.2385,0.00019178,2]
[402111043,1768522238809,-226.078085,0.00019178,7]
[402111045,1768522238819,-159.78,0.000192,2]
[402111047,1768522238830,-2732.49,0.000192,2]
[402111049,1768522238839,-172.92,0.000192,2]
[402111051,1768522238850,-303.10001603,0.00019278,2]
[402111053,1768522238860,-1010.85056242,0.00019286,76]
[402111055,1768522238870,-412.8268015,0.00019301,57]
[402111057,1768522238879,-194.9,0.00019302,2]
[402111059,1768522238889,-303.10001603,0.00019467,2]
[402111061,1768522238899,-1010.85056242,0.0001953,79]
[402111063,1768522238908,-12728.95680754,0.00019552,2]
[402111065,1768522238918,-412.8268015,0.00019561,61]
[402111067,1768522238928,-303.10001603,0.00019656,2]
[402111069,1768522238938,-289.0,0.00019684,2]
[402111071,1768522238948,-1010.85056242,0.00019774,81]
[402111073,1768522238958,-968.5109949,0.00019788,2]
[402111075,1768522238968,-860.1972778,0.00019788,2]
[402111077,1768522238978,-36653.952888,0.00019788,2]
[402111079,1768522238988,-2539.49297631,0.00019815,2]
[402111081,1768522238998,-728.0,0.00019815,2]
[402111083,1768522239008,-350.87447341,0.00019821,21]
[402111086,1768522239018,-412.8268015,0.00019821,65]
[402111088,1768522239028,-303.10001599,0.00019845,4]
[402111090,1768522239041,-194.9,0.00019875,2]
[402111092,1768522239051,-338.0,0.00019908,2]
[402111094,1768522239062,-168.4750937,0.00019925,66]
[402111096,1768522239074,-445.202766,0.00019939,5]
[402111098,1768522239083,-250.0,0.00019939,5]
[402111100,1768522239094,-461.67526834,0.00019939,5]
[402111102,1768522239105,-151.0,0.00019939,5]
[402111104,1768522239115,-250.0,0.00019939,5]
[402111106,1768522239125,-1000.0,0.00019939,5]
[402111108,1768522239135,-478.75725327,0.00019939,5]
[402111110,1768522239144,-151.0,0.00019939,5]
[402111112,1768522239154,-250.0,0.00019939,5]
[402111114,1768522239164,-1000.0,0.00019939,5]
[402111116,1768522239173,-151.0,0.00019939,5]
[402111118,1768522239183,-496.47127164,0.00019939,5]
[402111120,1768522239193,-151.0,0.00019939,5]
[402111122,1768522239203,-1000.0,0.00019939,5]
[402111125,1768522239216,-250.0,0.00019939,5]
[402111127,1768522239226,-514.84070869,0.00019939,5]
[402111129,1768522239236,-162.380719,0.00019939,5]
[402111130,1768522239245,-151.0,0.00019939,5]
[402111131,1768522239259,-1000.0,0.00019939,5]
[402111132,1768522239269,-250.0,0.00019939,5]
[402111133,1768522239279,-162.380719,0.00019939,5]
[402111134,1768522239288,-168.3888056,0.00019939,5]
[402111135,1768522239302,-533.88981491,0.00019939,5]
[402111136,1768522239312,-151.0,0.00019939,5]
[402111137,1768522239322,-1000.0,0.00019939,5]
[402111138,1768522239333,-168.3888056,0.00019939,5]
[402111139,1768522239343,-169.11441979,0.00019939,5]
[402111140,1768522239353,-553.64373807,0.00019939,5]
[402111141,1768522239362,-250.0,0.00019939,5]
[402111142,1768522239373,-174.61919141,0.00019939,5]
[402111143,1768522239383,-1000.0,0.00019939,5]